[Event "*** Titled Tuesday Blitz"]
[Site "Chess.com"]
[Date "2019.10.01"]
[Round "3"]
[White "Keaton87"]
[Black "boasovietica"]
[Result "0-1"]
[WhiteElo "2599"]
[BlackElo "2426"]
[TimeControl "180+2"]
[EndTime "13:38:16 PDT"]
[Termination "boasovietica won by resignation"]

1. Nf3 {[%clk 0:03:01.9]} 1... d6 {[%clk 0:02:57.8]} 2. e4 {[%clk 0:03:01.2]}
2... Bg4 {[%clk 0:02:56.8]} 3. h3 {[%clk 0:02:57.4]} 3... Bh5 {[%clk 0:02:56.2]}
4. d4 {[%clk 0:02:54.7]} 4... Nf6 {[%clk 0:02:54.6]} 5. Nc3 {[%clk 0:02:55.1]}
5... e6 {[%clk 0:02:53.2]} 6. Be2 {[%clk 0:02:56.1]} 6... c6 {[%clk 0:02:54.1]}
7. a4 {[%clk 0:02:54.9]} 7... d5 {[%clk 0:02:54.9]} 8. e5 {[%clk 0:02:51.9]}
8... Nfd7 {[%clk 0:02:55.7]} 9. Be3 {[%clk 0:02:48.1]} 9... a6 {[%clk
0:02:53.6]} 10. O-O {[%clk 0:02:43.1]} 10... Be7 {[%clk 0:02:49.6]} 11. a5
{[%clk 0:02:37.2]} 11... c5 {[%clk 0:02:47.9]} 12. Na4 {[%clk 0:02:34.7]} 12...
cxd4 {[%clk 0:02:34.1]} 13. Bxd4 {[%clk 0:02:34.9]} 13... Nc6 {[%clk 0:02:32.9]}
14. Bb6 {[%clk 0:02:22.9]} 14... Nxb6 {[%clk 0:02:22.7]} 15. Nxb6 {[%clk
0:02:23.9]} 15... Rb8 {[%clk 0:02:23.4]} 16. c4 {[%clk 0:02:14.6]} 16... dxc4
{[%clk 0:02:12.3]} 17. Nxc4 {[%clk 0:02:15.1]} 17... O-O {[%clk 0:02:06.7]} 18.
Nfd2 {[%clk 0:02:12.6]} 18... Bxe2 {[%clk 0:02:05.5]} 19. Qxe2 {[%clk
0:02:14.5]} 19... Qc7 {[%clk 0:02:06.4]} 20. b3 {[%clk 0:02:05.3]} 20... Rbd8
{[%clk 0:02:06.5]} 21. Nf3 {[%clk 0:02:00]} 21... Nd4 {[%clk 0:02:00.7]} 22.
Nxd4 {[%clk 0:01:52]} 22... Rxd4 {[%clk 0:02:02.6]} 23. Rfd1 {[%clk 0:01:49]}
23... Rfd8 {[%clk 0:01:58]} 24. Rxd4 {[%clk 0:01:49.4]} 24... Rxd4 {[%clk
0:01:58.5]} 25. Rd1 {[%clk 0:01:50.9]} 25... Qd8 {[%clk 0:01:54.8]} 26. Rxd4
{[%clk 0:01:47.4]} 26... Qxd4 {[%clk 0:01:55.5]} 27. Qd2 {[%clk 0:01:48.6]}
27... Qxd2 {[%clk 0:01:46.5]} 28. Nxd2 {[%clk 0:01:49.4]} 28... Kf8 {[%clk
0:01:47.4]} 29. f4 {[%clk 0:01:48.5]} 29... Ke8 {[%clk 0:01:48.9]} 30. Kf2
{[%clk 0:01:47.6]} 30... Kd7 {[%clk 0:01:49.6]} 31. Ke3 {[%clk 0:01:46.3]} 31...
Kc6 {[%clk 0:01:50]} 32. Nc4 {[%clk 0:01:41.6]} 32... Kb5 {[%clk 0:01:44.5]} 33.
Kd4 {[%clk 0:01:32]} 33... Kb4 {[%clk 0:01:40]} 34. Nd6 {[%clk 0:01:29.3]} 34...
Kxa5 {[%clk 0:01:39.6]} 35. Kc5 {[%clk 0:01:07.3]} 35... Bf8 {[%clk 0:01:27.4]}
36. g3 {[%clk 0:01:03.4]} 36... f6 {[%clk 0:01:25.3]} 37. exf6 {[%clk
0:00:52.1]} 37... gxf6 {[%clk 0:01:24.6]} 38. g4 {[%clk 0:00:53.7]} 38... h6
{[%clk 0:01:14.8]} 39. h4 {[%clk 0:00:54.4]} 39... Be7 {[%clk 0:01:15.1]} 40. f5
{[%clk 0:00:38.6]} 40... e5 {[%clk 0:01:07]} 41. Kd5 {[%clk 0:00:33.6]} 41...
Bxd6 {[%clk 0:01:05.6]} 42. Kxd6 {[%clk 0:00:34.8]} 42... e4 {[%clk 0:01:01.3]}
43. g5 {[%clk 0:00:36.2]} 43... hxg5 {[%clk 0:00:58.7]} 44. hxg5 {[%clk
0:00:33.7]} 44... e3 {[%clk 0:00:57.5]} 45. g6 {[%clk 0:00:12.1]} 45... e2
{[%clk 0:00:56.9]} 46. g7 {[%clk 0:00:13.6]} 46... e1=Q {[%clk 0:00:57.7]} 47.
g8=Q {[%clk 0:00:14.7]} 47... Qe5+ {[%clk 0:00:55.1]} 48. Kd7 {[%clk 0:00:15.1]}
48... Qxf5+ {[%clk 0:00:53.8]} 49. Kc7 {[%clk 0:00:16.2]} 49... Qb5 {[%clk
0:00:44.4]} 50. Kb8 {[%clk 0:00:12.2]} 50... f5 {[%clk 0:00:41.2]} 51. Qf7
{[%clk 0:00:11.1]} 51... Kb4 {[%clk 0:00:37.5]} 52. Ka8 {[%clk 0:00:11.9]} 52...
a5 {[%clk 0:00:34.9]} 53. Qe6 {[%clk 0:00:11.3]} 53... Qa6+ {[%clk 0:00:34.7]}
0-1

[Event "*** Titled Tuesday Blitz"]
[Site "Chess.com"]
[Date "2019.10.01"]
[Round "3"]
[White "Ginzburg_Yakov"]
[Black "Grieve72"]
[Result "1-0"]
[WhiteElo "2574"]
[BlackElo "2290"]
[TimeControl "180+2"]
[EndTime "13:38:30 PDT"]
[Termination "Ginzburg_Yakov won by resignation"]

1. e4 {[%clk 0:03:01.7]} 1... d6 {[%clk 0:03:01.2]} 2. d4 {[%clk 0:03:02.3]}
2... Nf6 {[%clk 0:03:02.9]} 3. Nc3 {[%clk 0:03:03]} 3... Nbd7 {[%clk 0:03:04.6]}
4. g3 {[%clk 0:03:03.1]} 4... e5 {[%clk 0:03:04.4]} 5. Nf3 {[%clk 0:03:03.4]}
5... c6 {[%clk 0:03:02.6]} 6. Bg2 {[%clk 0:03:03.9]} 6... Qc7 {[%clk 0:02:58.1]}
7. O-O {[%clk 0:03:04.3]} 7... g6 {[%clk 0:02:56.1]} 8. dxe5 {[%clk 0:02:20]}
8... dxe5 {[%clk 0:02:55.8]} 9. Nd2 {[%clk 0:02:21.7]} 9... Bg7 {[%clk 0:02:48]}
10. Nc4 {[%clk 0:02:22.5]} 10... O-O {[%clk 0:02:48.6]} 11. Qd6 {[%clk
0:02:23.4]} 11... Ne8 {[%clk 0:02:42.4]} 12. Qxc7 {[%clk 0:02:24.5]} 12... Nxc7
{[%clk 0:02:44.3]} 13. a4 {[%clk 0:02:22.3]} 13... Nb6 {[%clk 0:02:39.8]} 14.
Nd6 {[%clk 0:02:15.7]} 14... Rd8 {[%clk 0:02:31]} 15. Nxc8 {[%clk 0:02:16.6]}
15... Nxc8 {[%clk 0:02:05.8]} 16. Be3 {[%clk 0:02:00.4]} 16... a5 {[%clk
0:02:06]} 17. Rad1 {[%clk 0:01:55.8]} 17... Ne6 {[%clk 0:01:30.7]} 18. Rxd8+
{[%clk 0:01:47.9]} 18... Nxd8 {[%clk 0:01:32.6]} 19. Bh3 {[%clk 0:01:49.4]}
19... Nd6 {[%clk 0:01:22]} 20. b3 {[%clk 0:01:43.4]} 20... Bf8 {[%clk 0:01:10]}
21. Rd1 {[%clk 0:01:44]} 21... b5 {[%clk 0:00:58.1]} 22. Bc5 {[%clk 0:01:21.1]}
22... N8b7 {[%clk 0:00:58.3]} 23. Bxd6 {[%clk 0:01:08.6]} 23... Nxd6 {[%clk
0:01:00.2]} 24. Bd7 {[%clk 0:01:09.5]} 24... b4 {[%clk 0:00:41.4]} 25. Ne2
{[%clk 0:01:04]} 25... Ra7 {[%clk 0:00:41.4]} 26. Bxc6 {[%clk 0:00:45.1]} 26...
Rc7 {[%clk 0:00:41.6]} 27. Bd5 {[%clk 0:00:46.3]} 27... Rxc2 {[%clk 0:00:40.1]}
28. Kf1 {[%clk 0:00:47.7]} 28... Bh6 {[%clk 0:00:31.5]} 29. f4 {[%clk
0:00:43.4]} 29... exf4 {[%clk 0:00:25.8]} 30. gxf4 {[%clk 0:00:44.3]} 30... Kf8
{[%clk 0:00:26.5]} 31. e5 {[%clk 0:00:38.2]} 31... Nf5 {[%clk 0:00:27.2]} 32.
Rd3 {[%clk 0:00:37]} 32... Rb2 {[%clk 0:00:17.6]} 33. Ke1 {[%clk 0:00:27.8]}
33... Ke7 {[%clk 0:00:17.4]} 34. Bc4 {[%clk 0:00:27.8]} 34... g5 {[%clk
0:00:09.6]} 35. Rh3 {[%clk 0:00:17.9]} 35... g4 {[%clk 0:00:03]} 36. Rh5 {[%clk
0:00:17.2]} 36... Rb1+ {[%clk 0:00:04.1]} 37. Kd2 {[%clk 0:00:17.1]} 37... Rb2+
{[%clk 0:00:04.1]} 38. Kc1 {[%clk 0:00:17.3]} 38... Rxe2 {[%clk 0:00:03.7]} 39.
Bxe2 {[%clk 0:00:18.1]} 39... Bxf4+ {[%clk 0:00:05.3]} 40. Kb2 {[%clk
0:00:18.6]} 40... Nd4 {[%clk 0:00:04.3]} 41. Bxg4 {[%clk 0:00:18.1]} 41... h6
{[%clk 0:00:05.8]} 42. e6 {[%clk 0:00:15.9]} 42... f5 {[%clk 0:00:02.5]} 43.
Bxf5 {[%clk 0:00:13.3]} 43... Be5 {[%clk 0:00:04]} 44. Bh3 {[%clk 0:00:10.5]}
44... Kd6 {[%clk 0:00:02.9]} 45. Rxe5 {[%clk 0:00:10.6]} 45... Kxe5 {[%clk
0:00:03.7]} 46. e7 {[%clk 0:00:12]} 1-0

[Event "*** Titled Tuesday Blitz"]
[Site "Chess.com"]
[Date "2019.10.01"]
[Round "3"]
[White "LastHeroJr"]
[Black "Durarbayli"]
[Result "1-0"]
[WhiteElo "2530"]
[BlackElo "2797"]
[TimeControl "180+2"]
[EndTime "13:38:33 PDT"]
[Termination "LastHeroJr won on time"]

1. e4 {[%clk 0:03:01.9]} 1... Nf6 {[%clk 0:02:59]} 2. e5 {[%clk 0:03:02.9]} 2...
Nd5 {[%clk 0:03:00.6]} 3. d4 {[%clk 0:03:04.5]} 3... d6 {[%clk 0:03:01.8]} 4.
Nf3 {[%clk 0:03:06.2]} 4... g6 {[%clk 0:03:02.3]} 5. c4 {[%clk 0:03:04.6]} 5...
Nb6 {[%clk 0:03:03.1]} 6. Nc3 {[%clk 0:03:02]} 6... Bg7 {[%clk 0:03:02.4]} 7.
Be3 {[%clk 0:03:03.5]} 7... Bg4 {[%clk 0:02:33.3]} 8. c5 {[%clk 0:02:45.2]} 8...
dxc5 {[%clk 0:02:26.2]} 9. dxc5 {[%clk 0:02:47.1]} 9... Qxd1+ {[%clk 0:02:26.7]}
10. Rxd1 {[%clk 0:02:49]} 10... N6d7 {[%clk 0:02:26.8]} 11. Nd5 {[%clk
0:02:34.3]} 11... Bxf3 {[%clk 0:01:48.7]} 12. gxf3 {[%clk 0:02:32.6]} 12... Bxe5
{[%clk 0:01:49.2]} 13. f4 {[%clk 0:02:32]} 13... c6 {[%clk 0:01:47.5]} 14. fxe5
{[%clk 0:02:28.6]} 14... cxd5 {[%clk 0:01:48.3]} 15. Rxd5 {[%clk 0:02:23.6]}
15... e6 {[%clk 0:01:30.8]} 16. Rd6 {[%clk 0:02:24.5]} 16... Nxe5 {[%clk
0:01:28.7]} 17. Bg2 {[%clk 0:02:11.1]} 17... Nbc6 {[%clk 0:01:23.7]} 18. Bg5
{[%clk 0:01:53.1]} 18... O-O {[%clk 0:00:55.2]} 19. Bf6 {[%clk 0:01:14]} 19...
Ng4 {[%clk 0:00:53.2]} 20. Bh4 {[%clk 0:01:06.8]} 20... Rfc8 {[%clk 0:00:42.2]}
21. O-O {[%clk 0:01:04.3]} 21... Rc7 {[%clk 0:00:30.5]} 22. Rfd1 {[%clk
0:01:03.6]} 22... Rac8 {[%clk 0:00:24.5]} 23. h3 {[%clk 0:00:47.3]} 23... Nh6
{[%clk 0:00:09.5]} 24. Bf6 {[%clk 0:00:42.8]} 24... Rf8 {[%clk 0:00:07.1]} 25.
Rd7 {[%clk 0:00:35.5]} 25... Rcc8 {[%clk 0:00:05.2]} 26. Rxb7 {[%clk 0:00:36.1]}
26... Nf5 {[%clk 0:00:06.5]} 27. a3 {[%clk 0:00:28.2]} 27... a5 {[%clk 0:00:03]}
28. b4 {[%clk 0:00:28.5]} 28... axb4 {[%clk 0:00:03.4]} 29. axb4 {[%clk
0:00:30.4]} 29... e5 {[%clk 0:00:04.5]} 30. Rb6 {[%clk 0:00:27.7]} 30... Ncd4
{[%clk 0:00:05.2]} 31. Bxe5 {[%clk 0:00:29]} 31... Ne2+ {[%clk 0:00:04.3]} 32.
Kf1 {[%clk 0:00:29.4]} 32... Rfe8 {[%clk 0:00:05.9]} 33. Bf6 {[%clk 0:00:27.3]}
33... Nf4 {[%clk 0:00:06.8]} 34. Bg5 {[%clk 0:00:13.1]} 34... Ne6 {[%clk
0:00:05.6]} 35. Bf6 {[%clk 0:00:14.4]} 35... Nf4 {[%clk 0:00:06.2]} 36. Rb7
{[%clk 0:00:15.6]} 36... h6 {[%clk 0:00:06.5]} 37. Rdd7 {[%clk 0:00:15.9]} 37...
Rf8 {[%clk 0:00:07.8]} 38. Bd5 {[%clk 0:00:16.3]} 38... Nxd5 {[%clk 0:00:08.8]}
39. Rxd5 {[%clk 0:00:18.2]} 39... Rc6 {[%clk 0:00:10.5]} 40. Bc3 {[%clk
0:00:18.5]} 40... Nh4 {[%clk 0:00:09.9]} 41. b5 {[%clk 0:00:19.4]} 41... Re6
{[%clk 0:00:10.1]} 42. c6 {[%clk 0:00:18.7]} 42... Nf3 {[%clk 0:00:08.5]} 43. c7
{[%clk 0:00:19.5]} 43... Ree8 {[%clk 0:00:09.5]} 44. b6 {[%clk 0:00:20.1]} 44...
Ra8 {[%clk 0:00:09.3]} 45. Kg2 {[%clk 0:00:20.5]} 45... Nh4+ {[%clk 0:00:09.6]}
46. Kh2 {[%clk 0:00:21.4]} 46... Ra2 {[%clk 0:00:08.8]} 47. Rb8 {[%clk
0:00:20.9]} 47... Rxf2+ {[%clk 0:00:09.9]} 48. Kg1 {[%clk 0:00:20.7]} 48... Rg2+
{[%clk 0:00:09.6]} 49. Kf1 {[%clk 0:00:21.9]} 1-0

[Event "*** Titled Tuesday Blitz"]
[Site "Chess.com"]
[Date "2019.10.01"]
[Round "3"]
[White "Sajkochess"]
[Black "Andrei_Belozerov"]
[Result "1-0"]
[WhiteElo "2276"]
[BlackElo "2523"]
[TimeControl "180+2"]
[EndTime "13:38:33 PDT"]
[Termination "Sajkochess won by resignation"]

1. e4 {[%clk 0:03:01.9]} 1... c6 {[%clk 0:03:00.4]} 2. d4 {[%clk 0:03:02.2]}
2... d5 {[%clk 0:03:01.9]} 3. e5 {[%clk 0:03:03.4]} 3... Bf5 {[%clk 0:03:02.3]}
4. c4 {[%clk 0:03:02.7]} 4... e6 {[%clk 0:03:02.8]} 5. Nc3 {[%clk 0:03:04]} 5...
Ne7 {[%clk 0:02:59.2]} 6. a3 {[%clk 0:03:04.4]} 6... Nd7 {[%clk 0:02:57.2]} 7.
c5 {[%clk 0:03:04.4]} 7... b6 {[%clk 0:02:57.3]} 8. b4 {[%clk 0:03:04.3]} 8...
f6 {[%clk 0:02:57.5]} 9. f4 {[%clk 0:03:04.1]} 9... Bg6 {[%clk 0:02:52.2]} 10.
Nf3 {[%clk 0:02:56.9]} 10... Nf5 {[%clk 0:02:52.9]} 11. g4 {[%clk 0:02:34.9]}
11... Nh6 {[%clk 0:02:38.1]} 12. h3 {[%clk 0:02:08.1]} 12... fxe5 {[%clk
0:02:37.2]} 13. fxe5 {[%clk 0:02:06.5]} 13... Be7 {[%clk 0:02:36.2]} 14. Bd3
{[%clk 0:01:51.5]} 14... bxc5 {[%clk 0:02:23.4]} 15. bxc5 {[%clk 0:01:48]} 15...
Qa5 {[%clk 0:02:20.1]} 16. Qd2 {[%clk 0:01:29.5]} 16... O-O {[%clk 0:02:12]} 17.
O-O {[%clk 0:01:28.8]} 17... Bxc5 {[%clk 0:01:03.8]} 18. Bxg6 {[%clk 0:01:03.9]}
18... hxg6 {[%clk 0:01:02.6]} 19. dxc5 {[%clk 0:01:04.6]} 19... Qxc5+ {[%clk
0:00:55.3]} 20. Qd4 {[%clk 0:00:51.8]} 20... Rxf3 {[%clk 0:00:49.8]} 21. Qxc5
{[%clk 0:00:50]} 21... Rxf1+ {[%clk 0:00:50.7]} 22. Kxf1 {[%clk 0:00:50.2]}
22... Nxc5 {[%clk 0:00:52.2]} 23. Be3 {[%clk 0:00:49.6]} 23... Nd3 {[%clk
0:00:47.8]} 24. Ke2 {[%clk 0:00:35.2]} 24... Nxe5 {[%clk 0:00:47.7]} 25. Bd4
{[%clk 0:00:29]} 25... Nhf7 {[%clk 0:00:45.2]} 26. Na4 {[%clk 0:00:28.5]} 26...
Nc4 {[%clk 0:00:44.2]} 27. Rb1 {[%clk 0:00:23]} 27... e5 {[%clk 0:00:43.7]} 28.
Bc5 {[%clk 0:00:23.8]} 28... a5 {[%clk 0:00:34.2]} 29. Rb7 {[%clk 0:00:23.4]}
29... g5 {[%clk 0:00:34.4]} 30. Nb6 {[%clk 0:00:21]} 30... Nxb6 {[%clk
0:00:33.5]} 31. Bxb6 {[%clk 0:00:22.9]} 31... Nd8 {[%clk 0:00:29.5]} 32. Re7
{[%clk 0:00:20.6]} 32... Nf7 {[%clk 0:00:26.2]} 33. a4 {[%clk 0:00:17.3]} 33...
d4 {[%clk 0:00:20.5]} 34. Kd3 {[%clk 0:00:14]} 34... Rb8 {[%clk 0:00:20.1]} 35.
Bxa5 {[%clk 0:00:14.1]} 35... Rb3+ {[%clk 0:00:20.8]} 36. Kc4 {[%clk 0:00:12.8]}
36... Rxh3 {[%clk 0:00:19.7]} 37. Bb4 {[%clk 0:00:12]} 37... Rh1 {[%clk
0:00:17.8]} 38. a5 {[%clk 0:00:11.4]} 38... Rc1+ {[%clk 0:00:19.1]} 39. Kb3
{[%clk 0:00:12.1]} 39... d3 {[%clk 0:00:18.9]} 40. a6 {[%clk 0:00:10.6]} 40...
Ra1 {[%clk 0:00:19.4]} 41. a7 {[%clk 0:00:10.6]} 41... Nd6 {[%clk 0:00:17.8]}
42. Ba3 {[%clk 0:00:05.6]} 42... Rxa3+ {[%clk 0:00:11.9]} 43. Kxa3 {[%clk
0:00:07.5]} 43... Nb5+ {[%clk 0:00:08.9]} 44. Kb3 {[%clk 0:00:08.6]} 44... Nxa7
{[%clk 0:00:08.8]} 45. Rxa7 {[%clk 0:00:10.5]} 45... e4 {[%clk 0:00:06.6]} 46.
Kc3 {[%clk 0:00:10.2]} 46... Kh7 {[%clk 0:00:06.9]} 47. Re7 {[%clk 0:00:10.8]}
1-0

[Event "*** Titled Tuesday Blitz"]
[Site "Chess.com"]
[Date "2019.10.01"]
[Round "3"]
[White "Spring199"]
[Black "Marreuh"]
[Result "1-0"]
[WhiteElo "2376"]
[BlackElo "2097"]
[TimeControl "180+2"]
[EndTime "13:38:33 PDT"]
[Termination "Spring199 won by resignation"]

1. d4 {[%clk 0:03:01.9]} 1... Nf6 {[%clk 0:02:59]} 2. c4 {[%clk 0:03:02.5]} 2...
e6 {[%clk 0:03:00.5]} 3. Nf3 {[%clk 0:03:03]} 3... d5 {[%clk 0:03:01.1]} 4. g3
{[%clk 0:03:03.5]} 4... Be7 {[%clk 0:03:01.5]} 5. Bg2 {[%clk 0:03:04.8]} 5...
O-O {[%clk 0:03:03.2]} 6. O-O {[%clk 0:03:06.5]} 6... dxc4 {[%clk 0:03:04.8]} 7.
Qc2 {[%clk 0:03:06.5]} 7... b5 {[%clk 0:03:05.4]} 8. a4 {[%clk 0:03:02]} 8... b4
{[%clk 0:03:06.6]} 9. Qxc4 {[%clk 0:03:02]} 9... Ba6 {[%clk 0:02:59.5]} 10. Qc2
{[%clk 0:02:59.8]} 10... Nbd7 {[%clk 0:02:43.2]} 11. Bf4 {[%clk 0:02:57.5]}
11... c5 {[%clk 0:02:40.9]} 12. Rd1 {[%clk 0:02:49.3]} 12... Rc8 {[%clk
0:02:38.7]} 13. dxc5 {[%clk 0:02:24.8]} 13... Bxc5 {[%clk 0:02:34.3]} 14. Qd2
{[%clk 0:02:08.5]} 14... Qb6 {[%clk 0:02:33.8]} 15. e3 {[%clk 0:02:01.7]} 15...
Ne4 {[%clk 0:02:25.4]} 16. Qe1 {[%clk 0:01:39.1]} 16... Ndf6 {[%clk 0:02:21.7]}
17. Ne5 {[%clk 0:01:34.6]} 17... Rfd8 {[%clk 0:02:10.5]} 18. Nd2 {[%clk
0:01:31.7]} 18... Nxd2 {[%clk 0:02:03.7]} 19. Rxd2 {[%clk 0:01:32.2]} 19... Rxd2
{[%clk 0:02:05.4]} 20. Qxd2 {[%clk 0:01:32.9]} 20... Rd8 {[%clk 0:02:07.1]} 21.
Qe1 {[%clk 0:01:26.6]} 21... Bb7 {[%clk 0:02:07.1]} 22. Bxb7 {[%clk 0:01:04.9]}
22... Qxb7 {[%clk 0:02:07.7]} 23. Rd1 {[%clk 0:01:06.8]} 23... Rxd1 {[%clk
0:01:44.9]} 24. Qxd1 {[%clk 0:01:06.7]} 24... Nd5 {[%clk 0:01:39.1]} 25. Nc4
{[%clk 0:00:54.4]} 25... Nxf4 {[%clk 0:01:14]} 26. Qd8+ {[%clk 0:00:53]} 26...
Bf8 {[%clk 0:01:15]} 27. gxf4 {[%clk 0:00:53.4]} 27... Qd5 {[%clk 0:01:12.1]}
28. Qxd5 {[%clk 0:00:44.3]} 28... exd5 {[%clk 0:01:14]} 29. Ne5 {[%clk
0:00:46.2]} 29... f6 {[%clk 0:01:08.2]} 30. Nc6 {[%clk 0:00:46]} 30... Bc5
{[%clk 0:01:05.6]} 31. Kf1 {[%clk 0:00:45.4]} 31... Kf7 {[%clk 0:01:05.3]} 32.
Ke2 {[%clk 0:00:45.9]} 32... Ke6 {[%clk 0:01:06.2]} 33. Kd3 {[%clk 0:00:47.1]}
33... Kd7 {[%clk 0:00:45.3]} 34. Nd4 {[%clk 0:00:43.9]} 34... g6 {[%clk
0:00:41]} 35. Nb3 {[%clk 0:00:41.4]} 35... Be7 {[%clk 0:00:29.1]} 36. Kd4 {[%clk
0:00:41.2]} 36... Kd6 {[%clk 0:00:28.8]} 37. f3 {[%clk 0:00:32.1]} 37... f5
{[%clk 0:00:29.9]} 38. Kd3 {[%clk 0:00:31.7]} 38... Bf6 {[%clk 0:00:30.7]} 39.
Nd4 {[%clk 0:00:32.3]} 39... a6 {[%clk 0:00:25.2]} 40. b3 {[%clk 0:00:32.8]}
40... h6 {[%clk 0:00:13.7]} 41. Nc2 {[%clk 0:00:33.1]} 41... Bc3 {[%clk
0:00:12.3]} 42. Nd4 {[%clk 0:00:32.5]} 42... Be1 {[%clk 0:00:09.1]} 43. h3
{[%clk 0:00:32.4]} 43... Bc3 {[%clk 0:00:09.3]} 44. Nc2 {[%clk 0:00:30.6]} 44...
Bf6 {[%clk 0:00:09]} 45. Nxb4 {[%clk 0:00:29.9]} 45... g5 {[%clk 0:00:07.1]} 46.
fxg5 {[%clk 0:00:27.1]} 46... hxg5 {[%clk 0:00:09]} 47. Nxa6 {[%clk 0:00:28]}
47... Kc6 {[%clk 0:00:06]} 48. Nb4+ {[%clk 0:00:28.3]} 48... Kc5 {[%clk
0:00:07.4]} 49. Nc2 {[%clk 0:00:29.8]} 49... Bg7 {[%clk 0:00:03.7]} 50. b4+
{[%clk 0:00:31]} 50... Kc6 {[%clk 0:00:03.8]} 51. Nd4+ {[%clk 0:00:32.4]} 1-0

[Event "*** Titled Tuesday Blitz"]
[Site "Chess.com"]
[Date "2019.10.01"]
[Round "3"]
[White "Aggressus"]
[Black "MikeSailer"]
[Result "1-0"]
[WhiteElo "2372"]
[BlackElo "2088"]
[TimeControl "180+2"]
[EndTime "13:38:34 PDT"]
[Termination "Aggressus won on time"]

1. e4 {[%clk 0:03:01.9]} 1... d5 {[%clk 0:03:00.1]} 2. exd5 {[%clk 0:03:02.2]}
2... Qxd5 {[%clk 0:03:01.3]} 3. Nc3 {[%clk 0:03:03.2]} 3... Qd6 {[%clk 0:03:02]}
4. Nf3 {[%clk 0:03:02.4]} 4... Nf6 {[%clk 0:03:03.4]} 5. d4 {[%clk 0:03:02.7]}
5... c6 {[%clk 0:03:05.1]} 6. Ne5 {[%clk 0:03:03.1]} 6... Bf5 {[%clk 0:03:05.6]}
7. Bc4 {[%clk 0:03:02.7]} 7... e6 {[%clk 0:03:06.8]} 8. g4 {[%clk 0:03:01.6]}
8... Be4 {[%clk 0:02:39.6]} 9. Rg1 {[%clk 0:02:50]} 9... h6 {[%clk 0:02:34]} 10.
Bf4 {[%clk 0:02:32.1]} 10... Qb4 {[%clk 0:02:32.4]} 11. Qd2 {[%clk 0:01:38.1]}
11... Bd5 {[%clk 0:01:57.1]} 12. Bb3 {[%clk 0:00:28.9]} 12... Bxb3 {[%clk
0:01:47.6]} 13. axb3 {[%clk 0:00:29.5]} 13... Nbd7 {[%clk 0:01:45.8]} 14. Ra4
{[%clk 0:00:29.6]} 14... Qb6 {[%clk 0:01:41]} 15. h4 {[%clk 0:00:29.3]} 15...
Nxe5 {[%clk 0:01:23.8]} 16. Bxe5 {[%clk 0:00:26.4]} 16... Nd5 {[%clk 0:01:08.2]}
17. Nxd5 {[%clk 0:00:23.9]} 17... exd5 {[%clk 0:00:47.5]} 18. g5 {[%clk
0:00:19.9]} 18... hxg5 {[%clk 0:00:44.8]} 19. Qxg5 {[%clk 0:00:19.9]} 19... Be7
{[%clk 0:00:20.8]} 20. Qxg7 {[%clk 0:00:19.9]} 20... O-O-O {[%clk 0:00:21.3]}
21. Qxh8 {[%clk 0:00:17.1]} 21... Rxh8 {[%clk 0:00:22.3]} 22. Bxh8 {[%clk
0:00:18]} 22... Bxh4 {[%clk 0:00:21.1]} 23. Rg4 {[%clk 0:00:17.6]} 23... Be7
{[%clk 0:00:19.6]} 24. Ra1 {[%clk 0:00:18.4]} 24... Qb4+ {[%clk 0:00:18.4]} 25.
Ke2 {[%clk 0:00:18.8]} 25... Qb5+ {[%clk 0:00:19.1]} 26. Kd2 {[%clk 0:00:19.1]}
26... Qb4+ {[%clk 0:00:18]} 27. Kd3 {[%clk 0:00:19.1]} 27... Qb5+ {[%clk
0:00:19.2]} 28. Ke3 {[%clk 0:00:20]} 28... b6 {[%clk 0:00:14]} 29. Rh1 {[%clk
0:00:20.1]} 29... c5 {[%clk 0:00:09.4]} 30. Rh7 {[%clk 0:00:20.8]} 30... cxd4+
{[%clk 0:00:09]} 31. Bxd4 {[%clk 0:00:21.8]} 31... Bc5 {[%clk 0:00:08.8]} 32.
Rg8+ {[%clk 0:00:22.3]} 32... Kb7 {[%clk 0:00:09.9]} 33. Rxf7+ {[%clk
0:00:23.2]} 33... Ka6 {[%clk 0:00:11.5]} 34. Rgg7 {[%clk 0:00:21]} 34... Bxd4+
{[%clk 0:00:12.6]} 35. Kxd4 {[%clk 0:00:22.3]} 35... Qc5+ {[%clk 0:00:13]} 36.
Kd3 {[%clk 0:00:23.5]} 36... Qb5+ {[%clk 0:00:10.1]} 37. Kd2 {[%clk 0:00:23.9]}
37... Qb4+ {[%clk 0:00:10.9]} 38. Kd1 {[%clk 0:00:18.1]} 38... Qd4+ {[%clk
0:00:11.6]} 39. Kc1 {[%clk 0:00:19.2]} 39... Kb5 {[%clk 0:00:07.1]} 40. Rxa7
{[%clk 0:00:11.8]} 40... Qxf2 {[%clk 0:00:08.2]} 41. Kb1 {[%clk 0:00:12.9]}
41... Qe1+ {[%clk 0:00:05.2]} 42. Ka2 {[%clk 0:00:13.8]} 42... Qd2 {[%clk
0:00:05.2]} 43. Rgc7 {[%clk 0:00:14.2]} 43... d4 {[%clk 0:00:04.6]} 44. Ra4
{[%clk 0:00:09.6]} 44... Qe2 {[%clk 0:00:02.3]} 45. Rcc4 {[%clk 0:00:08]} 1-0